bitfinex-derivatives/quotes_SOLF0:USTF0_20260210
["timestamp","ask_amount","ask_price","bid_price","bid_amount"]
[1770719121946,8.31642215,84.629,84.59,3.67299211]
[1770719122153,8.35855825,84.642,84.601,10.6489]
[1770719122554,8.35855825,84.642,84.61,3.67299211]
[1770719122750,21.9247173,84.733,84.56,165.7316]
[1770719122751,8.35855825,84.669,84.621,10.6464]
[1770719123145,8.35855825,84.669,84.599,147.7]
[1770719123348,8.35855825,84.669,84.552,21.3103]
[1770719123349,8.35879511,84.659,84.612,10.6476]
[1770719123855,8.35879511,84.659,84.622,10.6463]
[1770719126359,8.41580236,84.649,84.59,3.67299211]
[1770719126954,3.65847843,84.64,84.59,10.6504]
[1770719127151,8.41580236,84.639,84.59,10.6504]
[1770719128858,8.41580236,84.639,84.6,14.30747843]
[1770719130265,8.41580236,84.639,84.592,119.4]
[1770719130266,8.38818677,84.659,84.61,3.65847843]
[1770719131660,8.38818677,84.659,84.62,3.65847843]
[1770719132063,8.38836978,84.679,84.63,3.65847843]
[1770719132267,8.38836978,84.679,84.64,3.65847843]
[1770719132560,8.38075288,84.696,84.66,10.6415]
[1770719133165,8.38075288,84.696,84.66,14.29997843]
[1770719133466,8.38075288,84.696,84.66,3.65847843]
[1770719133861,8.38075288,84.696,84.651,10.6426]
[1770719134667,8.38075288,84.696,84.66,3.65847843]
[1770719135362,8.38075288,84.696,84.566,165.7183]
[1770719135363,8.47593996,84.689,84.638,10.6443]
[1770719135664,8.47593996,84.679,84.638,10.6443]
[1770719135864,8.47593996,84.679,84.63,3.65847843]
[1770719136063,8.47593996,84.679,84.619,94.34]
[1770719136064,8.47593996,84.698,84.65,3.65847843]
[1770719137869,8.47593996,84.698,84.651,10.6426]
[1770719138174,8.38221559,84.696,84.651,10.6426]
[1770719138358,8.38221559,84.689,84.651,10.6426]
[1770719139069,8.38221559,84.686,84.642,10.6438]
[1770719139268,94.34,84.727,84.619,94.34]
[1770719139269,8.38239049,84.701,84.619,94.34]
[1770719139464,8.38239049,84.699,84.64,3.65847843]
[1770719139772,8.38239049,84.697,84.648,10.643]
[1770719141066,8.3821272,84.689,84.64,14.30247843]
[1770719141477,8.3821272,84.689,84.64,3.65847843]
[1770719141669,8.3821272,84.689,84.65,3.65847843]
[1770719141865,8.38229857,84.709,84.661,10.6414]
[1770719142476,8.38229857,84.709,84.668,10.6405]
[1770719143675,19.15485593,84.708,84.66,14.29997843]
[1770719145077,8.5276186,84.707,84.66,14.29997843]
[1770719147975,8.52904127,84.704,84.66,14.29997843]
[1770719149175,12.16545027,84.7,84.642,107.5]
[1770719149376,8.50700689,84.699,84.64,3.65847843]
[1770719150183,8.50700689,84.697,84.654,10.6423]
[1770719151882,8.50700689,84.697,84.65,3.65847843]
[1770719152886,8.50700689,84.697,84.654,10.6422]
[1770719153683,10.6371,84.696,84.654,10.6422]
[1770719153884,8.50410335,84.695,84.654,10.6422]
[1770719154079,8.50410335,84.689,84.62,3.65847843]
[1770719154274,8.48633259,84.679,84.62,3.65847843]
[1770719154480,8.48633259,84.671,84.62,3.65847843]
[1770719155075,21.2717,84.706,84.62,3.65847843]
[1770719155076,8.48633259,84.669,84.62,3.65847843]
[1770719155281,3.65847843,84.67,84.61,3.65847843]
[1770719155282,8.48638393,84.661,84.61,3.65847843]
[1770719155584,8.48638393,84.674,84.63,3.65847843]
[1770719156781,8.3828752,84.699,84.64,3.65847843]
[1770719157082,8.3828752,84.699,84.615,94.26]
[1770719157083,8.3828752,84.699,84.65,3.65847843]
[1770719157289,8.3828752,84.699,84.652,10.6425]
[1770719158296,10.6368,84.698,84.652,10.6425]
[1770719158492,19.09036382,84.698,84.652,10.6425]
[1770719159691,21.2665,84.727,84.644,10.6435]
[1770719159692,8.45364162,84.695,84.644,10.6435]
[1770719160083,8.45364162,84.695,84.639,94.26]
[1770719160084,8.45846103,84.709,84.639,94.26]
[1770719160289,8.45846103,84.699,84.65,3.65378477]
[1770719160488,8.45846103,84.696,84.65,10.6428]
[1770719160692,2.05522532,84.728,84.62,3.65378477]
[1770719160693,3.65378477,84.68,84.62,3.65378477]
[1770719160887,8.45846103,84.679,84.62,3.65378477]
[1770719161694,8.458533,84.672,84.629,10.6454]
[1770719161891,10.99370209,84.713,84.613,94.26]
[1770719161892,8.458533,84.659,84.613,94.26]
[1770719162286,94.26,84.702,84.596,10.6495]
[1770719162287,8.5619176,84.642,84.596,10.6495]
[1770719162587,8.5619176,84.639,84.58,3.65378477]
[1770719162786,8.5619176,84.639,84.59,3.65378477]
[1770719162990,8.5619176,84.639,84.571,202.5]
[1770719163681,8.5619176,84.639,84.593,10.6499]
[1770719164386,8.5619176,84.639,84.571,202.5]
[1770719164387,8.5619176,84.639,84.602,10.6487]
[1770719165692,8.5619176,84.639,84.594,10.6499]
[1770719167091,8.5619176,84.639,84.601,10.649]
[1770719167396,8.5619176,84.639,84.586,202.58]
[1770719167796,8.5619176,84.639,84.601,10.6489]
[1770719169398,8.51094875,84.638,84.592,10.6501]
[1770719169995,8.51094875,84.638,84.586,202.58]
[1770719170798,8.51094875,84.638,84.607,10.6482]
[1770719173295,10.6424,84.654,84.586,202.58]
[1770719173296,8.55002753,84.653,84.586,202.58]
[1770719173495,8.55002202,84.651,84.586,202.58]
[1770719173989,10.6428,84.65,84.586,202.58]
[1770719174190,8.55002202,84.649,84.586,202.58]
[1770719174491,94.3,84.688,84.586,202.58]
[1770719174492,8.56086765,84.641,84.586,202.58]
[1770719175699,8.56086765,84.641,84.604,10.6485]
[1770719177000,8.55619535,84.638,84.596,10.6496]
[1770719177705,8.55618564,84.636,84.596,10.6496]
[1770719180993,8.56702162,84.632,84.55,9.14624091]
[1770719181192,9.047233,84.66,84.495,177.7076]
[1770719181193,8.56697549,84.629,84.551,94.3]
[1770719181401,8.56697549,84.629,84.552,94.3]
[1770719181595,8.56697549,84.629,84.53,9.14624091]
[1770719181799,8.56697549,84.615,84.555,10.6547]
[1770719181996,8.56697549,84.615,84.553,94.3]
[1770719183001,8.56697549,84.615,84.53,9.14624091]
[1770719183305,8.56697549,84.615,84.554,111.02]
[1770719183805,9.14624091,84.63,84.563,10.6538]
[1770719183806,19.20253782,84.613,84.563,10.6538]
[1770719184000,8.55493782,84.612,84.563,10.6538]
[1770719187309,8.55493782,84.612,84.57,10.6529]
[1770719190712,21.2846,84.655,84.56,97.98085699]
[1770719190713,8.59858674,84.607,84.563,10.6537]
[1770719190906,8.59858674,84.607,84.56,97.98085699]
[1770719193009,8.59858674,84.607,84.574,10.6523]
[1770719193713,8.59850611,84.606,84.565,10.6534]
[1770719194519,8.6059017,84.603,84.565,10.6534]
[1770719195915,8.60586514,84.611,84.571,10.6527]
[1770719196715,10.6479,84.61,84.571,10.6527]
[1770719196915,8.6208443,84.609,84.564,10.6535]
[1770719197815,8.62080009,84.605,84.564,10.6535]
[1770719201818,10.6486,84.604,84.564,10.6535]
[1770719202219,10.6477,84.612,84.58,3.66085699]
[1770719202921,10.6477,84.612,84.579,10.6517]
[1770719205320,8.5998462,84.611,84.56,94.34]
[1770719205525,8.5998462,84.611,84.473,165.902]
[1770719205526,8.5998462,84.596,84.54,3.66085699]
[1770719205724,8.5998462,84.589,84.53,3.66085699]
[1770719206216,8.66372099,84.587,84.53,3.66085699]
[1770719206412,8.66372099,84.585,84.53,3.66085699]
[1770719206625,8.66372099,84.583,84.538,10.6569]
[1770719207921,8.66372099,84.583,84.541,10.6565]
[1770719209919,94.36,84.633,84.524,94.34]
[1770719209920,8.59068802,84.596,84.55,3.66085699]
[1770719210719,8.59068802,84.596,84.56,3.66085699]
[1770719210918,10.99370209,84.626,84.491,201.4667]
[1770719210919,8.5755935,84.608,84.57,3.66085699]
[1770719212128,9.06633327,84.607,84.57,3.66085699]
[1770719212329,9.06633327,84.606,84.57,3.66085699]
[1770719212529,8.5755935,84.608,84.57,3.66085699]
[1770719212726,17.68792191,84.607,84.57,3.66085699]
[1770719212931,8.62082174,84.605,84.56,14.31495699]
[1770719216431,8.62082174,84.605,84.567,10.6532]
[1770719219138,8.60708894,84.603,84.567,10.6532]
[1770719219930,8.60706068,84.601,84.56,14.31495699]
[1770719220130,8.60706068,84.601,84.55,98.02085699]
[1770719220331,8.57735199,84.599,84.54,3.66085699]
[1770719220537,8.57735199,84.597,84.54,3.66085699]
[1770719220733,8.57735199,84.593,84.553,10.6549]
[1770719220937,8.57735199,84.591,84.54,3.66085699]
[1770719222137,21.2927,84.622,84.526,123.9]
[1770719222138,8.57733712,84.579,84.526,123.9]
[1770719222441,8.57471943,84.577,84.52,3.66085699]
[1770719222634,8.57471943,84.577,84.53,3.66085699]
[1770719223434,8.57471943,84.577,84.537,10.6569]
[1770719223746,8.57470599,84.592,84.55,3.66085699]
[1770719224541,8.60863927,84.607,84.57,3.66085699]
[1770719224847,8.60863927,84.607,84.516,21.3194]
[1770719224848,8.60863927,84.599,84.537,94.36]
[1770719225044,8.60863927,84.597,84.54,3.66085699]
[1770719225244,8.6086122,84.595,84.54,3.66085699]
[1770719225545,8.6086122,84.589,84.54,3.66085699]
[1770719225746,8.6086122,84.584,84.544,10.6561]
[1770719228342,8.6086122,84.584,84.54,3.66085699]
[1770719228343,8.60768451,84.576,84.533,10.6575]
[1770719228542,8.60768451,84.576,84.52,3.66085699]
[1770719228744,8.60768451,84.574,84.52,3.66085699]
[1770719228945,8.60768451,84.572,84.52,3.66085699]
[1770719229246,8.60768451,84.57,84.52,3.66085699]
[1770719229541,8.60768451,84.57,84.54,3.66085699]
[1770719229946,8.60768451,84.57,84.534,10.6574]
[1770719231839,8.60768451,84.57,84.53,3.66085699]
[1770719232036,8.60768451,84.57,84.527,10.6582]
[1770719232237,8.60768451,84.57,84.52,3.66085699]
[1770719232441,8.60768451,84.57,84.53,3.66085699]
[1770719233350,8.60768451,84.57,84.533,10.6575]
[1770719235148,8.60768451,84.57,84.54,3.66085699]
[1770719235855,8.67049355,84.584,84.541,10.6564]
[1770719236547,10.652,84.578,84.54,3.66085699]
[1770719237451,10.652,84.578,84.543,10.6563]
[1770719238549,10.652,84.578,84.472,35.6]
[1770719238550,8.67191693,84.596,84.56,3.66085699]
[1770719238748,8.67191693,84.608,84.57,3.66085699]
[1770719239746,19.32001693,84.608,84.57,3.66085699]
[1770719240844,19.32001693,84.608,84.568,10.6531]
[1770719241245,8.67191693,84.608,84.571,10.6527]
[1770719243744,8.67191693,84.608,84.578,10.6518]
[1770719245150,8.67191693,84.608,84.57,14.31365699]
[1770719245351,8.62941035,84.605,84.56,3.66085699]
[1770719246758,8.62941035,84.605,84.56,14.31495699]
[1770719247861,8.62941035,84.605,84.553,94.38]
[1770719247862,8.62941035,84.605,84.57,3.66085699]
[1770719248460,8.62941035,84.605,84.55,3.66085699]
[1770719248758,8.65295813,84.603,84.55,3.66085699]
[1770719248964,8.65295813,84.603,84.55,3.66139017]
[1770719249765,8.65295813,84.603,84.56,3.66139017]
[1770719251060,8.65295813,84.603,84.569,10.653]
[1770719252256,10.6477,84.612,84.573,10.6524]
[1770719252455,19.28269125,84.612,84.57,3.66139017]
[1770719252656,10.6481,84.609,84.57,3.66139017]
[1770719252861,19.28309125,84.609,84.56,3.66139017]
[1770719253460,19.28309125,84.609,84.571,10.6527]
[1770719253958,8.63496417,84.608,84.571,10.6527]
[1770719254158,14.69296017,84.642,84.53,21.3158]
[1770719254159,8.63496417,84.597,84.55,3.66139017]
[1770719254553,8.63496417,84.597,84.56,10.6541]
[1770719255058,8.63496417,84.597,84.55,3.66139017]
[1770719255253,8.63496417,84.597,84.56,3.66139017]
[1770719255454,10.6479,84.61,84.57,3.66139017]
[1770719255665,19.31316309,84.61,84.57,3.66139017]
[1770719255867,8.66526309,84.607,84.57,10.6528]
[1770719256165,8.66526309,84.607,84.56,3.66139017]
[1770719257369,8.6614672,84.598,84.551,94.36]
[1770719257864,8.6614672,84.589,84.553,10.655]
[1770719258174,8.6614672,84.589,84.551,94.36]
[1770719258961,8.6614672,84.589,84.558,10.6543]
[1770719261967,8.6614672,84.589,84.551,10.6552]
[1770719265065,8.65191196,84.582,84.543,10.6562]
[1770719273977,10.6518,84.579,84.543,10.6562]
[1770719275575,8.64828866,84.576,84.543,10.6562]
[1770719276579,8.5996595,84.573,84.536,10.6571]
[1770719277773,10.6528,84.571,84.536,10.6571]
[1770719278683,8.60349298,84.568,84.536,10.6571]
[1770719280578,8.60349298,84.568,84.543,10.6563]
[1770719280780,8.55615775,84.586,84.543,10.6563]
[1770719281687,10.6512,84.584,84.543,10.6563]
[1770719281886,8.5561549,84.583,84.543,10.6563]
[1770719282891,10.6516,84.581,84.543,10.6563]
[1770719287284,8.5561549,84.583,84.54,3.66344071]
[1770719288792,8.5561549,84.583,84.553,10.6549]
[1770719289284,10.6503,84.591,84.553,10.6549]
[1770719289682,8.54358515,84.59,84.553,10.6549]
[1770719291895,10.6515,84.582,84.542,10.6563]
[1770719292400,8.62435586,84.588,84.55,3.66344071]
[1770719293083,10.651,84.586,84.543,10.6562]
[1770719293382,10.651,84.586,84.54,3.66344071]
[1770719293783,10.651,84.586,84.544,10.6561]
[1770719294594,10.651,84.586,84.55,3.66344071]
[1770719295096,19.2522211,84.586,84.55,3.66344071]
[1770719295495,8.60121055,84.585,84.55,3.66344071]
[1770719295692,8.60121055,84.585,84.554,10.6548]
[1770719295993,8.60121055,84.596,84.55,3.66344071]
[1770719296392,8.60121055,84.596,84.56,3.66344071]
[1770719297695,8.60121055,84.596,84.566,10.6533]
[1770719299200,8.60121055,84.596,84.55,3.66344071]
[1770719299201,8.60121055,84.596,84.559,10.6542]
[1770719300099,8.60121055,84.596,84.565,10.6535]
[1770719302196,9.04932123,84.595,84.565,10.6535]
[1770719302397,8.60121055,84.596,84.565,10.6535]
[1770719302596,9.04932314,84.595,84.565,10.6535]
[1770719302897,8.60121055,84.596,84.565,10.6535]
[1770719303096,8.59165752,84.594,84.565,10.6535]
[1770719304108,3.95178277,84.579,84.523,3.95126952]
[1770719304306,21.2961,84.609,84.468,439.35727945]
[1770719304307,3.95178277,84.569,84.51,3.66344071]
[1770719304505,3.95178277,84.559,84.508,3.95126952]
[1770719304712,3.95178277,84.556,84.509,10.6605]
[1770719304911,3.95178277,84.554,84.511,3.95126952]
[1770719305612,3.95178277,84.552,84.511,3.95126952]
[1770719306113,3.95178277,84.552,84.513,3.95126952]
[1770719310011,3.95178277,84.563,84.513,3.95126952]
[1770719310312,3.95178277,84.563,84.521,3.95126952]
[1770719311103,3.95178277,84.563,84.523,10.6588]
[1770719313710,98.46,84.611,84.51,3.66551091]
[1770719313711,3.95178277,84.559,84.515,10.6598]
[1770719313904,3.95178277,84.559,84.515,3.95126952]
[1770719314715,3.95178277,84.559,84.521,10.659]
[1770719314908,10.6532,84.568,84.522,3.95126952]
[1770719315512,14.60498277,84.568,84.522,3.95126952]
[1770719315708,3.95178277,84.567,84.525,3.95126952]
[1770719315910,3.95178277,84.564,84.525,3.95126952]
[1770719316809,14.60628277,84.558,84.525,3.95126952]
[1770719317108,3.95178277,84.557,84.525,3.95126952]
[1770719319309,3.95178277,84.549,84.5,3.95126952]
[1770719320716,3.95178277,84.546,84.501,10.6616]
[1770719322011,3.95178277,84.546,84.507,14.61196952]
[1770719322411,3.95178277,84.546,84.508,3.95126952]
[1770719325315,3.95178277,84.546,84.509,10.6606]
[1770719326618,3.95178277,84.546,84.509,14.61186952]
[1770719329419,3.95178277,84.546,84.51,3.95126952]
[1770719333523,3.95178277,84.546,84.511,10.6603]
[1770719334026,3.83640541,84.544,84.511,10.6603]
[1770719340937,3.83640541,84.539,84.499,4.01534915]
[1770719341137,3.83640541,84.539,84.488,98.41534915]
[1770719341335,3.83640541,84.539,84.488,4.01534915]
[1770719341536,3.83640541,84.529,84.478,4.01534915]
[1770719342736,3.83640541,84.522,84.48,10.6642]
[1770719343034,3.83640541,84.522,84.478,4.01534915]
[1770719343427,3.66914188,84.53,84.479,10.6643]
[1770719343428,3.83640541,84.519,84.479,10.6643]
[1770719344642,3.83640541,84.519,84.48,4.01534915]
[1770719345032,3.83640541,84.519,84.484,4.01534915]
[1770719346242,3.66914188,84.54,84.47,113.02]
[1770719346243,3.83640541,84.53,84.491,4.01534915]
[1770719347643,3.83640541,84.528,84.485,4.01534915]
[1770719348836,3.83640541,84.524,84.485,4.01534915]
[1770719349034,3.83640541,84.539,84.496,4.01534915]
[1770719349237,12.97667082,84.538,84.496,4.01534915]
[1770719349446,12.97667082,84.537,84.496,4.01534915]
[1770719349637,12.97667082,84.536,84.496,4.01534915]
[1770719349838,10.6575,84.534,84.496,4.01534915]
[1770719350038,9.14026541,84.533,84.496,4.01534915]
[1770719350239,9.14026541,84.532,84.496,4.01534915]
[1770719350438,3.83640541,84.533,84.496,4.01534915]
[1770719350640,9.13950791,84.532,84.496,4.01534915]
[1770719350841,3.83640541,84.533,84.499,4.01534915]
[1770719351639,3.83640541,84.533,84.49,3.66914188]
[1770719351640,3.83640541,84.533,84.5,14.67694915]
[1770719354050,3.83640541,84.533,84.501,4.01534915]
[1770719354345,3.83640541,84.533,84.474,94.44]
[1770719354346,3.83640541,84.544,84.51,4.01534915]
[1770719355742,3.83640541,84.544,84.511,10.6602]
[1770719357654,3.83640541,84.544,84.51,4.01534915]
[1770719357655,3.83640541,84.56,84.514,4.01534915]
[1770719357846,3.83640541,84.558,84.514,4.01534915]
[1770719358042,3.83640541,84.556,84.514,4.01534915]
[1770719358239,9.08813334,84.557,84.514,4.01534915]
[1770719358240,3.83640541,84.554,84.514,4.01534915]
[1770719358650,3.83640541,84.549,84.484,4.01534915]
[1770719358848,3.83640541,84.539,84.484,4.01534915]
[1770719359246,3.83640541,84.539,84.48,3.66914188]
[1770719359247,3.83640541,84.539,84.503,10.6613]
[1770719365755,3.83640541,84.539,84.504,3.83469789]
[1770719367257,9.09746175,84.538,84.504,3.83469789]
[1770719367457,3.83640541,84.539,84.504,3.83469789]
[1770719367653,10.6567,84.54,84.504,3.83469789]
[1770719367654,3.88650455,84.537,84.504,3.83469789]
[1770719371451,3.88650455,84.533,84.496,10.6621]
[1770719371657,3.88650455,84.531,84.496,10.6621]
[1770719371858,3.88650455,84.529,84.496,10.6621]
[1770719372055,3.88650455,84.527,84.496,10.6621]
[1770719372262,9.09910351,84.526,84.496,10.6621]
[1770719372465,9.09910351,84.525,84.496,10.6621]
[1770719372656,9.09910351,84.524,84.496,10.6621]
[1770719372963,9.09910351,84.523,84.496,10.6621]
[1770719373163,3.88650455,84.527,84.496,10.6621]
[1770719373357,9.09816715,84.526,84.496,10.6621]
[1770719373558,9.09816715,84.525,84.496,10.6621]
[1770719373853,9.09816715,84.524,84.496,10.6621]
[1770719374054,3.88650455,84.527,84.496,10.6621]
[1770719374263,9.09853929,84.526,84.496,10.6621]
[1770719374454,9.09853929,84.525,84.496,10.6621]
[1770719374657,9.09853929,84.524,84.496,10.6621]
[1770719374962,9.09853929,84.523,84.496,10.6621]
[1770719375263,3.88650455,84.527,84.496,10.6621]
[1770719375454,9.09837433,84.526,84.496,10.6621]
[1770719375657,3.88650455,84.527,84.494,3.83469789]
[1770719375658,9.09837433,84.525,84.494,3.83469789]
[1770719375854,9.09837433,84.524,84.494,3.83469789]
[1770719376055,3.88650455,84.527,84.494,3.83469789]
[1770719376255,9.09787669,84.526,84.494,3.83469789]
[1770719376456,9.09787669,84.525,84.494,3.83469789]
[1770719376656,9.09787669,84.524,84.494,3.83469789]
[1770719376854,3.88650455,84.527,84.494,3.83469789]
[1770719377055,9.09764376,84.526,84.494,3.83469789]
[1770719377265,9.09764376,84.525,84.494,3.83469789]
[1770719377464,9.09764376,84.524,84.494,3.83469789]
[1770719377664,3.88650455,84.527,84.494,3.83469789]
[1770719377963,9.09802091,84.526,84.494,3.83469789]
[1770719378166,9.09802091,84.525,84.494,3.83469789]
[1770719378464,12.98452546,84.524,84.494,3.83469789]
[1770719378667,3.88650455,84.524,84.494,3.83469789]
[1770719378866,3.88650455,84.52,84.483,3.83469789]
[1770719379566,3.88650455,84.51,84.472,3.83469789]
[1770719380354,3.88650455,84.51,84.476,10.6647]
[1770719381161,3.88650455,84.51,84.476,14.49939789]
[1770719381762,3.88650455,84.51,84.477,3.83469789]
[1770719382564,10.6597,84.516,84.477,3.83469789]
[1770719382764,10.6601,84.513,84.477,3.83469789]
[1770719385678,10.6589,84.522,84.483,3.83469789]
[1770719385879,9.11486506,84.521,84.483,3.83469789]
[1770719386079,3.88650455,84.544,84.501,3.83469789]
[1770719386276,3.88650455,84.542,84.501,3.83469789]
[1770719386476,3.88650455,84.54,84.501,3.83469789]
[1770719386680,3.88650455,84.538,84.501,3.83469789]
[1770719386881,3.88650455,84.536,84.501,3.83469789]
[1770719387088,9.11635855,84.535,84.501,3.83469789]
[1770719387283,3.88650455,84.533,84.49,3.83469789]
[1770719387483,14.54470455,84.528,84.491,10.6628]
[1770719388882,3.88650455,84.528,84.491,10.6628]
[1770719389584,9.11944568,84.527,84.491,10.6628]
[1770719389785,3.88650455,84.528,84.491,10.6628]
[1770719389982,9.11980805,84.527,84.491,10.6628]
[1770719390188,3.88650455,84.528,84.491,10.6628]
[1770719390484,13.074718,84.527,84.491,10.6628]
[1770719390788,9.12111579,84.526,84.491,10.6628]
[1770719390990,9.12111579,84.525,84.491,10.6628]
[1770719391190,3.95360221,84.527,84.49,3.83469789]
[1770719391191,9.12111579,84.524,84.49,3.83469789]
[1770719391380,3.95360221,84.527,84.49,3.83469789]
[1770719391590,9.12393939,84.526,84.49,3.83469789]
[1770719391783,9.12393939,84.525,84.49,3.83469789]
[1770719391986,3.95360221,84.527,84.492,10.6627]
[1770719393599,3.95360221,84.527,84.495,3.88525204]
[1770719397300,9.11995712,84.526,84.495,3.88525204]
[1770719397500,9.11995712,84.525,84.495,3.88525204]
[1770719397702,9.11995712,84.524,84.495,3.88525204]
[1770719397995,3.95360221,84.526,84.495,3.88525204]
[1770719398201,9.11995712,84.525,84.495,3.88525204]
[1770719398395,3.95360221,84.526,84.495,3.88525204]
[1770719398396,9.11995712,84.524,84.495,3.88525204]
[1770719398602,3.95360221,84.526,84.495,3.88525204]
[1770719398804,9.11978576,84.525,84.495,3.88525204]
[1770719399001,9.11978576,84.524,84.495,3.88525204]
[1770719399300,3.95360221,84.525,84.495,3.88525204]
[1770719399500,9.1196376,84.524,84.495,3.88525204]
[1770719399700,3.95360221,84.525,84.495,3.88525204]
[1770719399904,3.95360221,84.519,84.482,3.88525204]
[1770719400493,3.95360221,84.517,84.482,3.88525204]
[1770719401195,3.95360221,84.51,84.461,3.88525204]
[1770719402099,3.95360221,84.502,84.461,3.88525204]
[1770719403804,3.95360221,84.499,84.461,3.88525204]
[1770719404400,10.6609,84.507,84.463,3.88525204]
[1770719404603,3.95360221,84.525,84.481,3.88525204]
[1770719404902,3.95360221,84.523,84.481,3.88525204]
[1770719405204,3.95360221,84.52,84.481,14.54925204]
[1770719405407,10.6591,84.521,84.481,14.54925204]
[1770719405408,13.0712878,84.519,84.481,14.54925204]
[1770719405705,3.95360221,84.517,84.481,14.54925204]
[1770719407501,3.66726704,84.53,84.458,94.44]
[1770719407502,3.95360221,84.505,84.468,3.88525204]
[1770719408005,10.6621,84.497,84.468,3.88525204]
[1770719408397,14.61570221,84.497,84.457,3.88525204]
[1770719408998,3.95360221,84.497,84.461,3.88525204]
[1770719412611,10.6623,84.496,84.461,3.88525204]
[1770719413004,3.95360221,84.497,84.461,3.88525204]
[1770719415417,10.6613,84.504,84.461,3.88525204]
[1770719416116,3.95360221,84.503,84.461,3.88525204]
[1770719416306,3.95360221,84.492,84.441,3.88525204]
[1770719416511,3.95360221,84.489,84.441,3.88525204]
[1770719416719,3.66726704,84.49,84.441,3.88525204]
[1770719416720,3.95360221,84.487,84.441,3.88525204]
[1770719417719,3.95360221,84.483,84.441,3.88525204]
[1770719418610,3.95360221,84.483,84.445,10.6685]
[1770719418815,3.95360221,84.483,84.45,3.66726704]
[1770719419011,3.95360221,84.509,84.461,3.88525204]
[1770719419209,3.95360221,84.507,84.461,3.88525204]
[1770719419511,3.95360221,84.505,84.461,3.88525204]
[1770719419710,10.6615,84.502,84.461,3.88525204]
[1770719420916,10.6615,84.502,84.463,3.70439339]
[1770719421128,3.95360221,84.503,84.463,3.70439339]
[1770719421417,3.95360221,84.503,84.454,10.6675]
[1770719421622,3.99725166,84.501,84.455,3.70439339]
[1770719421916,3.99725166,84.501,84.46,3.66726704]
[1770719423217,3.99725166,84.501,84.457,3.70439339]
[1770719427221,3.99725166,84.501,84.415,21.3448]
[1770719427222,3.99725166,84.48,84.431,3.70439339]
[1770719428118,3.99725166,84.48,84.434,3.70439339]
[1770719429221,3.99725166,84.478,84.434,3.70439339]
[1770719430717,10.6647,84.476,84.428,3.70439339]
[1770719430918,10.6647,84.476,84.393,21.3503]
[1770719430919,3.99725166,84.489,84.441,3.70439339]
[1770719431112,3.99725166,84.489,84.451,3.70439339]
[1770719433512,10.6625,84.494,84.451,3.70439339]
[1770719433717,10.6625,84.494,84.454,3.70439339]
[1770719434926,3.99725166,84.5,84.456,3.70439339]
[1770719435125,3.99725166,84.519,84.461,3.70439339]
[1770719435322,3.99725166,84.517,84.461,3.70439339]
[1770719435617,3.99725166,84.515,84.461,3.70439339]
[1770719435823,3.99725166,84.513,84.471,3.70439339]
[1770719436011,3.99725166,84.511,84.471,3.70439339]
[1770719437729,10.6608,84.508,84.471,3.70439339]
[1770719437922,3.99725166,84.506,84.453,3.70439339]
[1770719438528,3.99725166,84.504,84.458,3.70439339]
[1770719439830,3.99725166,84.504,84.46,3.70439339]
[1770719440333,3.99725166,84.502,84.461,10.6666]
[1770719441720,3.99725166,84.5,84.461,10.6666]
[1770719441925,13.04189907,84.499,84.461,10.6666]
[1770719442135,3.99725166,84.499,84.461,10.6666]
[1770719442440,9.04764499,84.498,84.461,10.6666]
[1770719442645,3.99725166,84.499,84.461,10.6666]
[1770719442844,3.99725166,84.496,84.46,3.70439339]
[1770719443037,3.99725166,84.494,84.453,10.6676]
[1770719443340,10.97275711,84.513,84.441,3.70439339]
[1770719443341,3.99725166,84.489,84.441,3.70439339]
[1770719443642,3.99725166,84.487,84.441,3.70439339]
[1770719443837,3.99725166,84.485,84.441,3.70439339]
[1770719444036,3.99725166,84.483,84.441,3.70439339]
[1770719444239,3.99725166,84.481,84.441,3.70439339]
[1770719444742,14.66145166,84.481,84.441,3.70439339]
[1770719445246,9.03015001,84.48,84.441,3.70439339]
[1770719445444,9.03015001,84.479,84.441,3.70439339]
[1770719445640,14.66145166,84.481,84.441,3.70439339]
[1770719445946,3.99725166,84.48,84.441,3.70439339]
[1770719446843,3.99725166,84.48,84.441,14.37349339]
[1770719448148,3.99725166,84.48,84.43,3.67213661]
[1770719448149,3.99725166,84.475,84.433,10.67]
[1770719449946,3.92406217,84.473,84.433,10.67]
[1770719451745,3.67213661,84.48,84.438,3.8816153]
[1770719451949,3.92406217,84.484,84.438,3.8816153]
[1770719452150,3.92406217,84.482,84.438,3.8816153]
[1770719452649,3.92406217,84.475,84.438,3.8816153]
[1770719453253,10.665,84.474,84.438,3.8816153]
[1770719454652,14.58906217,84.474,84.438,3.8816153]
[1770719454857,10.6654,84.471,84.438,3.8816153]